fUST/lending_fUST_20250723
["ID","MTS","AMOUNT","RATE_DAILY","PERIOD"]
[374287361,1753265468304,-481.72036995,0.00021369,2]
[374287363,1753265468318,-502.17,0.00021369,2]
[374287365,1753265468328,-460.0,0.00021369,2]
[374287366,1753265468340,-460.0,0.00021369,2]
[374287368,1753265468351,-460.0,0.00021369,2]
[374287370,1753265468360,-460.0,0.00021369,2]
[374287372,1753265468370,-460.0,0.00021369,2]
[374287374,1753265468380,-460.0,0.00021369,2]
[374287376,1753265468389,-460.0,0.00021369,2]
[374287378,1753265468399,-460.0,0.00021369,2]
[374287379,1753265468408,-460.0,0.00021369,2]
[374287381,1753265468420,-460.0,0.00021369,2]
[374287383,1753265468430,-460.0,0.00021369,2]
[374287385,1753265468439,-460.0,0.00021369,2]
[374287387,1753265468448,-460.0,0.00021369,2]
[374287388,1753265468456,-460.0,0.00021369,2]
[374287390,1753265468465,-590.43,0.00021369,2]
[374287392,1753265468476,-460.0,0.00021369,2]
[374287394,1753265468485,-460.0,0.00021369,2]
[374287396,1753265468495,-460.0,0.00021369,2]
[374287398,1753265468504,-545.58,0.00021369,2]
[374287399,1753265468513,-1371.54,0.00021369,2]
[374287401,1753265468523,-460.0,0.00021369,2]
[374287403,1753265468533,-460.0,0.00021369,2]
[374287405,1753265468542,-460.0,0.00021369,2]
[374287407,1753265468552,-460.0,0.00021369,2]
[374287409,1753265468564,-495.25,0.00021369,2]
[374287411,1753265468573,-1752.06,0.00021369,2]
[374287413,1753265468583,-2780.13,0.00021369,2]
[374287414,1753265468593,-492.84,0.00021369,2]
[374287416,1753265468602,-485.84,0.00021369,2]
[374287418,1753265468612,-460.0,0.00021369,2]
[374287420,1753265468621,-460.0,0.00021369,2]
[374287422,1753265468630,-460.0,0.00021369,2]
[374287423,1753265468640,-1705.5,0.00021369,2]
[374287425,1753265468649,-460.0,0.00021369,2]
[374287427,1753265468659,-460.0,0.00021369,2]
[374287429,1753265468668,-485.59267446,0.00021369,2]
[374287431,1753265468678,-979.8,0.00021369,2]
[374287433,1753265468687,-460.0,0.00021369,2]
[374287435,1753265468697,-493.35,0.00021369,2]
[374287437,1753265468706,-460.0,0.00021369,2]
[374287439,1753265468716,-460.0,0.00021369,2]
[374287441,1753265468725,-3732.57,0.00021369,2]
[374287443,1753265468735,-460.0,0.00021369,2]
[374287445,1753265468744,-538.86,0.00021369,2]
[374287447,1753265468754,-5749.02,0.00021369,2]
[374287449,1753265468763,-460.0,0.00021369,2]
[374287451,1753265468773,-460.0,0.00021369,2]
[374287453,1753265468783,-460.0,0.00021369,2]
[374287455,1753265468792,-460.0,0.00021369,2]
[374287457,1753265468802,-460.0,0.00021369,2]
[374287459,1753265468814,-460.0,0.00021369,2]
[374287461,1753265468824,-460.0,0.00021369,2]
[374287463,1753265468833,-713.04,0.00021369,2]
[374287465,1753265468843,-460.0,0.00021369,2]
[374287467,1753265468853,-460.0,0.00021369,2]
[374287469,1753265468862,-460.0,0.00021369,2]
[374287471,1753265468871,-1054.45,0.00021369,2]
[374287473,1753265468881,-498.33,0.00021369,2]
[374287475,1753265468891,-460.0,0.00021369,2]
[374287485,1753265468900,-460.0,0.00021369,2]
[374287487,1753265468990,-460.0,0.00021369,2]
[374287489,1753265469000,-434.52221657,0.00021369,2]
[374287491,1753265469010,-509.4069577,0.00021369,2]
[374287493,1753265469020,-2109.27,0.00021369,2]
[374287495,1753265469029,-1050.54,0.00021369,2]
[374287497,1753265469039,-460.0,0.00021369,2]
[374287499,1753265469048,-460.0,0.00021369,2]
[374287501,1753265469059,-460.0,0.00021369,2]
[374287503,1753265469068,-460.0,0.00021369,2]
[374287505,1753265469078,-460.0,0.00021369,2]
[374287507,1753265469088,-460.0,0.00021369,2]
[374287509,1753265469098,-460.0,0.00021369,2]
[374287511,1753265469107,-546.88,0.00021369,2]
[374287512,1753265469117,-460.0,0.00021369,2]
[374287515,1753265469127,-460.0,0.00021369,2]
[374287517,1753265469137,-460.0,0.00021369,2]
[374287519,1753265469147,-460.0,0.00021369,2]
[374287521,1753265469156,-460.0,0.00021369,2]
[374287523,1753265469166,-884.23,0.00021369,2]
[374287525,1753265469175,-360.0,0.00021528,2]
[374287526,1753265469184,-163.98697154,0.00021536,2]
[374287528,1753265469194,-183.16125584,0.00021536,2]
[374287530,1753265469203,-500.0,0.00021536,2]
[374287532,1753265469213,-500.0,0.00021536,2]
[374287534,1753265469223,-500.0,0.00021536,2]
[374287536,1753265469232,-500.0,0.00021536,2]
[374287538,1753265469241,-500.0,0.00021536,2]
[374287540,1753265469251,-500.0,0.00021536,2]
[374287542,1753265469260,-500.0,0.00021536,2]
[374287544,1753265469269,-500.0,0.00021543,2]
[374287546,1753265469279,-1789.09,0.00021551,2]
[374287548,1753265469288,-500.0,0.00021568,2]
[374287549,1753265469298,-150.0,0.00021576,2]
[374287551,1753265469308,-151.0,0.000216,4]
[374287552,1753265469318,-2000.0,0.00021616,2]
[374287553,1753265469327,-2000.0,0.00021616,2]
[374287554,1753265469339,-2000.0,0.00021616,2]
[374287555,1753265469348,-500.0,0.00021616,2]
[374287556,1753265469359,-513.72045867,0.00021616,2]
[374287557,1753265469370,-500.0,0.00021616,2]
[374287558,1753265469380,-460.0,0.00021643,2]
[374287559,1753265469389,-331.19866621,0.00021643,2]
[374287560,1753265469400,-1396.32,0.00021643,2]
[374287561,1753265469409,-1130.89,0.00021643,2]
[374287562,1753265469419,-460.0,0.00021643,2]
[374287563,1753265469428,-496.2402934,0.00021643,2]
[374287564,1753265469438,-460.0,0.00021643,2]
[374287565,1753265469447,-460.0,0.00021643,2]
[374287566,1753265469457,-460.0,0.00021643,2]
[374287567,1753265469466,-460.0,0.00021643,2]
[374287568,1753265469475,-460.0,0.00021643,2]
[374287569,1753265469485,-460.0,0.00021643,2]
[374287570,1753265469494,-806.5,0.00021643,2]
[374287571,1753265469504,-460.0,0.00021643,2]
[374287572,1753265469514,-1052.43,0.00021643,2]
[374287573,1753265469523,-460.0,0.00021643,2]
[374287574,1753265469533,-430.27128955,0.00021643,2]
[374287575,1753265469542,-460.0,0.00021643,2]
[374287576,1753265469552,-460.0,0.00021643,2]
[374287577,1753265469562,-460.0,0.00021643,2]
[374287578,1753265469571,-2210.59,0.00021643,2]
[374287579,1753265469580,-750.25,0.00021643,2]
[374287580,1753265469590,-460.0,0.00021643,2]
[374287581,1753265469599,-460.0,0.00021643,2]
[374287582,1753265469608,-460.0,0.00021643,2]
[374287583,1753265469617,-502.17,0.00021643,2]
[374287584,1753265469627,-460.0,0.00021643,2]
[374287585,1753265469636,-460.0,0.00021643,2]
[374287586,1753265469646,-460.0,0.00021643,2]
[374287587,1753265469655,-460.0,0.00021643,2]
[374287588,1753265469665,-460.0,0.00021643,2]
[374287589,1753265469675,-460.0,0.00021643,2]
[374287590,1753265469685,-460.0,0.00021643,2]
[374287591,1753265469694,-460.0,0.00021643,2]
[374287593,1753265469704,-460.0,0.00021643,2]
[374287594,1753265469713,-460.0,0.00021643,2]
[374287596,1753265469723,-460.0,0.00021643,2]
[374287597,1753265469732,-460.0,0.00021643,2]
[374287598,1753265469741,-590.43,0.00021643,2]
[374287600,1753265469750,-151.0,0.00021643,2]
[374287601,1753265469760,-151.0,0.00021643,2]
[374287602,1753265469770,-460.0,0.00021643,2]
[374287603,1753265469778,-460.0,0.00021643,2]
[374287604,1753265469789,-545.58,0.00021643,2]
[374287605,1753265469798,-1371.54,0.00021643,2]
[374287606,1753265469810,-460.0,0.00021643,2]
[374287607,1753265469820,-460.0,0.00021643,2]
[374287608,1753265469829,-460.0,0.00021643,2]
[374287609,1753265469839,-460.0,0.00021643,2]
[374287610,1753265469848,-495.25,0.00021643,2]
[374287611,1753265469858,-1752.06,0.00021643,2]
[374287613,1753265469867,-2780.13,0.00021643,2]
[374287615,1753265469877,-492.84,0.00021643,2]
[374287617,1753265469886,-485.84,0.00021643,2]
[374287619,1753265469895,-460.0,0.00021643,2]
[374287621,1753265469904,-360.694872,0.00021643,2]
[374287623,1753265469913,-296.02191902,0.00021643,2]
[374287625,1753265469922,-400.0,0.00021643,2]
[374287626,1753265469932,-360.694872,0.00021643,2]
[374287628,1753265469941,-1705.5,0.00021643,2]
[374287629,1753265469950,-460.0,0.00021643,2]
[374287631,1753265469960,-460.0,0.00021643,2]
[374287632,1753265469969,-979.8,0.00021643,2]
[374287634,1753265469979,-493.35,0.00021643,2]
[374287636,1753265469988,-460.0,0.00021643,2]
[374287638,1753265469998,-460.0,0.00021643,2]
[374287639,1753265470008,-3732.57,0.00021643,2]
[374287640,1753265470017,-460.0,0.00021643,2]
[374287641,1753265470026,-1151.421358,0.00021643,2]
[374287642,1753265470035,-538.86,0.00021643,2]
[374287643,1753265470045,-5749.02,0.00021643,2]
[374287644,1753265470054,-1151.421358,0.00021643,2]
[374287645,1753265470067,-460.0,0.00021643,2]
[374287646,1753265470076,-460.0,0.00021643,2]
[374287647,1753265470085,-460.0,0.00021643,2]
[374287648,1753265470095,-713.04,0.00021643,2]
[374287649,1753265470104,-460.0,0.00021643,2]
[374287650,1753265470114,-460.0,0.00021643,2]
[374287651,1753265470123,-1054.45,0.00021643,2]
[374287652,1753265470133,-498.33,0.00021643,2]
[374287653,1753265470143,-460.0,0.00021643,2]
[374287654,1753265470153,-460.0,0.00021643,2]
[374287655,1753265470163,-460.0,0.00021643,2]
[374287656,1753265470172,-2109.27,0.00021643,2]
[374287657,1753265470181,-1050.54,0.00021643,2]
[374287658,1753265470191,-460.0,0.00021643,2]
[374287659,1753265470201,-460.0,0.00021643,2]
[374287660,1753265470211,-418.18023803,0.00021643,2]
[374287661,1753265470221,-460.0,0.00021643,2]
[374287662,1753265470309,-460.0,0.00021643,2]
[374287663,1753265470320,-460.0,0.00021643,2]
[374287664,1753265470330,-546.88,0.00021643,2]
[374287665,1753265470345,-460.0,0.00021643,2]
[374287666,1753265470354,-460.0,0.00021643,2]
[374287667,1753265470364,-460.0,0.00021643,2]
[374287668,1753265470374,-460.0,0.00021643,2]
[374287669,1753265470385,-460.0,0.00021643,2]
[374287670,1753265470394,-884.23,0.00021643,2]
[374287671,1753265470403,-151.0,0.00021663,2]
[374287672,1753265470414,-151.0,0.00021663,2]
[374287673,1753265470423,-500.0,0.00021663,2]
[374287674,1753265470433,-151.0,0.00021663,2]
[374287675,1753265470442,-500.0,0.00021663,2]
[374287676,1753265470452,-151.0,0.00021663,2]
[374287677,1753265470462,-500.0,0.00021663,2]
[374287678,1753265470471,-151.0,0.00021663,2]
[374287679,1753265470480,-500.0,0.00021663,2]
[374287680,1753265470490,-151.0,0.00021663,2]
[374287681,1753265470500,-500.0,0.00021663,2]
[374287682,1753265470509,-151.0,0.00021663,2]
[374287683,1753265470518,-500.0,0.00021663,2]
[374287684,1753265470528,-25000.0,0.00021663,2]
[374287685,1753265470537,-151.0,0.00021663,2]
[374287686,1753265470546,-500.0,0.00021663,2]
[374287687,1753265470555,-151.0,0.00021663,2]
[374287688,1753265470567,-151.0,0.00021663,2]
[374287689,1753265470577,-500.0,0.00021663,2]
[374287690,1753265470586,-151.0,0.00021663,2]
[374287691,1753265470596,-500.0,0.00021663,2]
[374287692,1753265470605,-151.0,0.00021663,2]
[374287693,1753265470614,-23510.68623767,0.00021663,2]
[374287694,1753265470624,-500.0,0.00021663,2]
[374287695,1753265470633,-151.0,0.00021663,2]
[374287696,1753265470643,-500.0,0.00021663,2]
[374287697,1753265470652,-151.0,0.00021663,2]
[374287698,1753265470662,-500.0,0.00021663,2]
[374287699,1753265470671,-151.0,0.00021663,2]
[374287700,1753265470681,-500.0,0.00021663,2]
[374287701,1753265470690,-151.0,0.00021663,2]
[374287702,1753265470699,-500.0,0.00021663,2]
[374287703,1753265470709,-500.0,0.00021663,2]
[374287704,1753265470718,-151.0,0.00021663,2]
[374287705,1753265470728,-500.0,0.00021663,2]
[374287706,1753265470738,-151.0,0.00021663,2]
[374287707,1753265470747,-215.0738,0.00021663,2]
[374287708,1753265470756,-151.0,0.00021663,2]
[374287709,1753265470765,-151.0,0.00021663,2]
[374287710,1753265470775,-151.0,0.00021663,2]
[374287711,1753265470784,-500.0,0.00021663,2]
[374287712,1753265470794,-627.67361628,0.00021663,2]
[374287713,1753265470803,-151.0,0.00021663,2]
[374287714,1753265470815,-151.0,0.00021663,2]
[374287715,1753265470824,-295.905301,0.00021663,2]
[374287716,1753265470834,-295.905301,0.00021663,2]
[374287717,1753265470844,-285.23802837,0.00021664,2]
[374287718,1753265470854,-4290.92441391,0.00021811,2]
[374287719,1753265470872,-500.0,0.00021817,2]
[374287720,1753265470882,-275.0,0.00021836,5]
[374287721,1753265470892,-205.0,0.0002188,2]
[374287722,1753265470907,-3000.0,0.00021912,2]
[374287723,1753265470928,-460.0,0.00021917,2]
[374287724,1753265470946,-1396.32,0.00021917,2]
[374287725,1753265470966,-1130.89,0.00021917,2]
[374287726,1753265470986,-471.12,0.00021917,2]
[374287727,1753265471005,-460.0,0.00021917,2]
[374287728,1753265471024,-460.0,0.00021917,2]
[374287729,1753265471039,-460.0,0.00021917,2]
[374287730,1753265471055,-460.0,0.00021917,2]
[374287731,1753265471075,-229.87535684,0.00021917,2]
[374287732,1753265471097,-460.0,0.00021917,2]
[374287733,1753265471113,-806.5,0.00021917,2]
[374287734,1753265471131,-460.0,0.00021917,2]
[374287735,1753265471146,-1052.43,0.00021917,2]
[374287736,1753265471163,-460.0,0.00021917,2]
[374287737,1753265471176,-460.0,0.00021917,2]
[374287738,1753265471193,-460.0,0.00021917,2]
[374287739,1753265471209,-460.0,0.00021917,2]
[374287740,1753265471223,-2210.59,0.00021917,2]
[374287741,1753265471238,-750.25,0.00021917,2]
[374287742,1753265471253,-460.0,0.00021917,2]
[374287743,1753265471267,-460.0,0.00021917,2]
[374287744,1753265471282,-460.0,0.00021917,2]
[374287745,1753265471296,-502.17,0.00021917,2]
[374287746,1753265471311,-460.0,0.00021917,2]
[374287747,1753265471327,-460.0,0.00021917,2]
[374287748,1753265471347,-333.36683095,0.00021917,2]
[374287749,1753265471361,-460.0,0.00021917,2]
[374287750,1753265471377,-460.0,0.00021917,2]
[374287751,1753265471393,-460.0,0.00021917,2]
[374287752,1753265471408,-460.0,0.00021917,2]
[374287753,1753265471422,-244.69830687,0.00021917,2]
[374287754,1753265471436,-460.0,0.00021917,2]
[374287755,1753265471451,-481.42,0.00021917,2]
[374287756,1753265471466,-460.0,0.00021917,2]
[374287757,1753265471480,-590.43,0.00021917,2]
[374287758,1753265471495,-460.0,0.00021917,2]
[374287759,1753265471510,-460.0,0.00021917,2]
[374287760,1753265471524,-545.58,0.00021917,2]
[374287761,1753265471539,-1371.54,0.00021917,2]
[374287762,1753265471553,-460.0,0.00021917,2]
[374287763,1753265471569,-460.0,0.00021917,2]
[374287764,1753265471579,-460.0,0.00021917,2]
[374287765,1753265471588,-460.0,0.00021917,2]
[374287766,1753265471598,-495.25,0.00021917,2]
[374287767,1753265471608,-1752.06,0.00021917,2]
[374287768,1753265471617,-2780.13,0.00021917,2]
[374287769,1753265471627,-492.84,0.00021917,2]
[374287770,1753265471636,-485.84,0.00021917,2]
[374287771,1753265471646,-460.0,0.00021917,2]
[374287772,1753265471655,-1705.5,0.00021917,2]
[374287773,1753265471665,-460.0,0.00021917,2]
[374287774,1753265471674,-979.8,0.00021917,2]
[374287775,1753265471684,-493.35,0.00021917,2]
[374287776,1753265471693,-460.0,0.00021917,2]
[374287777,1753265471703,-460.0,0.00021917,2]
[374287778,1753265471712,-3732.57,0.00021917,2]
[374287779,1753265471723,-460.0,0.00021917,2]
[374287780,1753265471732,-538.86,0.00021917,2]
[374287781,1753265471881,-5749.02,0.00021917,2]
[374287782,1753265471952,-460.0,0.00021917,2]
[374287783,1753265471964,-460.0,0.00021917,2]
[374287784,1753265471975,-460.0,0.00021917,2]
[374287785,1753265471986,-713.04,0.00021917,2]
[374287786,1753265471996,-460.0,0.00021917,2]
[374287787,1753265472006,-460.0,0.00021917,2]
[374287788,1753265472016,-1054.45,0.00021917,2]
[374287789,1753265472026,-498.33,0.00021917,2]
[374287790,1753265472037,-460.0,0.00021917,2]
[374287791,1753265472048,-460.0,0.00021917,2]
[374287792,1753265472058,-460.0,0.00021917,2]
[374287793,1753265472068,-2109.27,0.00021917,2]
[374287794,1753265472077,-1050.54,0.00021917,2]
[374287795,1753265472088,-500.88,0.00021917,2]
[374287796,1753265472098,-460.0,0.00021917,2]
[374287797,1753265472107,-460.0,0.00021917,2]
[374287798,1753265472118,-460.0,0.00021917,2]
[374287799,1753265472128,-460.0,0.00021917,2]
[374287800,1753265472139,-546.88,0.00021917,2]
[374287801,1753265472150,-460.0,0.00021917,2]
[374287802,1753265472160,-460.0,0.00021917,2]
[374287803,1753265472170,-460.0,0.00021917,2]
[374287804,1753265472180,-460.0,0.00021917,2]
[374287805,1753265472189,-884.23,0.00021917,2]
[374287806,1753265472199,-150.0,0.00021918,2]
[374287807,1753265472208,-150.46368495,0.00021918,2]
[374287808,1753265472218,-156.13,0.0002192,4]
[374287809,1753265472228,-199.63,0.0002192,4]
[374287810,1753265472237,-1239.78,0.00022,7]
[374287811,1753265472247,-12153.16,0.00022,7]
[374287812,1753265472256,-151.0,0.00022,3]
[374287813,1753265472267,-50523.38,0.00022,2]
[374287814,1753265472277,-2977.51,0.00022,7]
[374287815,1753265472286,-151.0,0.00022,7]
[374287816,1753265472295,-160.0,0.00022,7]
[374287817,1753265472305,-476.696448,0.00022,7]
[374287818,1753265472316,-214.67886746,0.00022,7]
[374287819,1753265472326,-173.0,0.00022,2]
[374287820,1753265472338,-460.0,0.00022076,2]
[374287821,1753265472347,-457.6800577,0.00022084,2]
[374287822,1753265472357,-263.22455176,0.00022084,2]
[374287823,1753265472366,-500.0,0.00022084,2]
[374287824,1753265472375,-500.0,0.00022084,2]
[374287825,1753265472385,-1000.0,0.00022084,2]
[374287826,1753265472395,-500.0,0.00022091,2]
[374287827,1753265472405,-500.0,0.000221,2]
[374287828,1753265472416,-1000.0,0.00022116,2]
[374287829,1753265472426,-295.110964,0.00022162,7]
[374287830,1753265472435,-295.110964,0.00022162,7]
[374287831,1753265472445,-2500.0,0.00022164,2]
[374287832,1753265472455,-2500.0,0.00022164,2]
[374287833,1753265472464,-205.0,0.0002218,2]
[374287834,1753265472474,-460.0,0.00022191,2]
[374287835,1753265472484,-1396.32,0.00022191,2]
[374287836,1753265472493,-1130.89,0.00022191,2]
[374287837,1753265472504,-460.0,0.00022191,2]
[374287838,1753265472513,-352.85766504,0.00022191,2]
[374287839,1753265472522,-460.0,0.00022191,2]
[374287840,1753265472531,-460.0,0.00022191,2]
[374287841,1753265472541,-460.0,0.00022191,2]
[374287842,1753265472550,-806.5,0.00022191,2]
[374287843,1753265472561,-460.0,0.00022191,2]
[374287844,1753265472571,-460.0,0.00022191,2]
[374287845,1753265472580,-1052.43,0.00022191,2]
[374287846,1753265472590,-460.0,0.00022191,2]
[374287847,1753265472600,-460.0,0.00022191,2]
[374287848,1753265472609,-460.0,0.00022191,2]
[374287849,1753265472619,-2210.59,0.00022191,2]
[374287850,1753265472629,-750.25,0.00022191,2]
[374287851,1753265472639,-460.0,0.00022191,2]
[374287852,1753265472649,-550.1,0.00022191,2]
[374287853,1753265472658,-460.0,0.00022191,2]
[374287854,1753265472667,-502.17,0.00022191,2]
[374287855,1753265472677,-460.0,0.00022191,2]
[374287856,1753265472687,-460.0,0.00022191,2]
[374287857,1753265472697,-460.0,0.00022191,2]
[374287858,1753265472707,-460.0,0.00022191,2]
[374287859,1753265472716,-460.0,0.00022191,2]
[374287860,1753265472726,-460.0,0.00022191,2]
[374287861,1753265472735,-595.55698879,0.00022191,2]
[374287862,1753265472745,-460.0,0.00022191,2]
[374287863,1753265472754,-590.43,0.00022191,2]
[374287864,1753265472764,-460.0,0.00022191,2]
[374287865,1753265472773,-460.0,0.00022191,2]
[374287866,1753265472783,-545.58,0.00022191,2]
[374287867,1753265472792,-1371.54,0.00022191,2]
[374287868,1753265472802,-460.0,0.00022191,2]
[374287869,1753265472813,-460.0,0.00022191,2]
[374287870,1753265472822,-495.25,0.00022191,2]
[374287871,1753265472832,-1752.06,0.00022191,2]
[374287872,1753265472842,-2780.13,0.00022191,2]
[374287873,1753265472852,-492.84,0.00022191,2]
[374287874,1753265472861,-485.84,0.00022191,2]
[374287875,1753265472870,-460.0,0.00022191,2]
[374287876,1753265472880,-1705.5,0.00022191,2]
[374287877,1753265472889,-460.0,0.00022191,2]
[374287878,1753265472899,-979.8,0.00022191,2]
[374287879,1753265472909,-493.35,0.00022191,2]
[374287880,1753265472918,-460.0,0.00022191,2]
[374287881,1753265472928,-460.0,0.00022191,2]
[374287882,1753265472938,-460.0,0.00022191,2]
[374287883,1753265472947,-3732.57,0.00022191,2]
[374287884,1753265472957,-538.86,0.00022191,2]
[374287885,1753265472967,-5749.02,0.00022191,2]
[374287886,1753265472976,-173.56660763,0.00022191,2]
[374287887,1753265472985,-460.0,0.00022191,2]
[374287888,1753265472996,-713.04,0.00022191,2]
[374287889,1753265473006,-460.0,0.00022191,2]
[374287890,1753265473016,-460.0,0.00022191,2]
[374287891,1753265473026,-1054.45,0.00022191,2]
[374287892,1753265473035,-498.33,0.00022191,2]
[374287893,1753265473046,-460.0,0.00022191,2]
[374287894,1753265473057,-460.0,0.00022191,2]
[374287895,1753265473070,-2109.27,0.00022191,2]
[374287896,1753265473080,-1050.54,0.00022191,2]
[374287897,1753265473090,-383.96,0.00022191,2]
[374287898,1753265473099,-460.0,0.00022191,2]
[374287899,1753265473109,-460.0,0.00022191,2]
[374287900,1753265473119,-460.0,0.00022191,2]
[374287901,1753265473129,-546.88,0.00022191,2]
[374287902,1753265473138,-460.0,0.00022191,2]
[374287903,1753265473148,-460.0,0.00022191,2]
[374287904,1753265473157,-460.0,0.00022191,2]
[374287905,1753265473166,-884.23,0.00022191,2]
[374287906,1753265473176,-173.0,0.00022192,7]
[374287907,1753265473185,-25000.0,0.00022211,2]
[374287908,1753265473195,-217.73550934,0.00022211,2]
[374287909,1753265473204,-151.0,0.00022211,7]
[374287910,1753265473214,-151.0,0.00022211,7]
[374287911,1753265473223,-151.0,0.00022211,7]
[374287912,1753265473233,-151.0,0.000223,10]
[374287913,1753265473242,-500.0,0.00022365,2]
[374287914,1753265473252,-4290.92441391,0.00022371,2]
[374287915,1753265473261,-3367.6100132,0.0002246,2]
[374287916,1753265473270,-460.0,0.00022465,2]
[374287917,1753265473280,-1396.32,0.00022465,2]
[374287918,1753265473290,-1130.89,0.00022465,2]
[374287919,1753265473299,-460.0,0.00022465,2]
[374287920,1753265473310,-460.0,0.00022465,2]
[374287921,1753265473320,-460.0,0.00022465,2]
[374287922,1753265473330,-806.5,0.00022465,2]
[374287923,1753265473345,-460.0,0.00022465,2]
[374287924,1753265473354,-460.0,0.00022465,2]
[374287925,1753265473363,-1052.43,0.00022465,2]
[374287926,1753265473374,-460.0,0.00022465,2]
[374287927,1753265473384,-460.0,0.00022465,2]
[374287928,1753265473394,-181.46,0.00022465,2]
[374287929,1753265473403,-2210.59,0.00022465,2]
[374287930,1753265473415,-750.25,0.00022465,2]
[374287931,1753265473425,-460.0,0.00022465,2]
[374287932,1753265473435,-460.0,0.00022465,2]
[374287933,1753265473444,-502.17,0.00022465,2]
[374287934,1753265473454,-460.0,0.00022465,2]
[374287935,1753265473463,-460.0,0.00022465,2]
[374287936,1753265473473,-461.69,0.00022465,2]
[374287937,1753265473483,-460.0,0.00022465,2]
[374287938,1753265473492,-520.33,0.00022465,2]
[374287939,1753265473503,-460.0,0.00022465,2]
[374287940,1753265473513,-460.0,0.00022465,2]
[374287941,1753265473523,-590.43,0.00022465,2]
[374287942,1753265473533,-460.0,0.00022465,2]
[374287943,1753265473542,-460.0,0.00022465,2]
[374287944,1753265473552,-545.58,0.00022465,2]
[374287945,1753265473565,-1371.54,0.00022465,2]
[374287946,1753265473576,-250.60818836,0.00022465,2]
[374287947,1753265473586,-460.0,0.00022465,2]
[374287948,1753265473595,-495.25,0.00022465,2]
[374287949,1753265473605,-1752.06,0.00022465,2]
[374287950,1753265473614,-2780.13,0.00022465,2]
[374287951,1753265473624,-492.84,0.00022465,2]
[374287952,1753265473634,-485.84,0.00022465,2]
[374287953,1753265473644,-1117.767002,0.00022465,7]
[374287954,1753265473654,-460.0,0.00022465,2]
[374287955,1753265473664,-1117.767002,0.00022465,7]
[374287956,1753265473674,-1705.5,0.00022465,2]
[374287957,1753265473683,-460.0,0.00022465,2]
[374287958,1753265473693,-979.8,0.00022465,2]
[374287959,1753265473704,-493.35,0.00022465,2]
[374287960,1753265473713,-434.47,0.00022465,2]
[374287961,1753265473723,-329.75157684,0.00022465,2]
[374287962,1753265473733,-460.0,0.00022465,2]
[374287963,1753265473742,-3732.57,0.00022465,2]
[374287964,1753265473752,-538.86,0.00022465,2]
[374287965,1753265473762,-5749.02,0.00022465,2]
[374287966,1753265473771,-460.0,0.00022465,2]
[374287967,1753265473782,-713.04,0.00022465,2]
[374287968,1753265473791,-460.0,0.00022465,2]
[374287969,1753265473801,-1054.45,0.00022465,2]
[374287970,1753265473813,-498.33,0.00022465,2]